Cogmind - Beta 13 @@@ ROGUE MODE // 2024.03.12 @ 03:45:45 Player: puppuppit Result: Destroyed by Proton Bomb Trap Performance ------------- Evolutions (0) 0 Regions Visited (4) 800 Robots Destroyed (53) 265 Value Destroyed (861) 861 Prototype IDs (24) 480 Alien Tech Used (0) 0 Bonus (87) 87 TOTAL SCORE: 2493 Bonus ------- High Alert Combat Kills 14 Follower Combat Kills 74 Friendly Fire -1 Cogmind --------- Core Integrity 0/250 Matter 300/300 Energy 99/100 System Corruption 0% Temperature Cool (2) Movement Hovering (56) Location -9/Mines Parts ------- > --- POWER (1) -------- (None) > --- PROPULSION (2) --- Improved Hover Unit Airjet > --- UTILITY (2) ------ Small Storage Unit Thief Drone Bay (3/3) > --- WEAPON (2) ------- Particle Gun > --- INVENTORY (8) ---- Improved Hover Unit Improved Hover Unit Improved Hover Unit High-capacity Matter Pod (200) Makeshift Hacking Suite Guided Plasma Cannon Rocket Launcher Peak State ------------ > --- POWER ------------ Light Ion Engine > --- PROPULSION ------- Improved Hover Unit Airjet > --- UTILITY ---------- Small Storage Unit Thief Drone Bay > --- WEAPON ----------- Particle Gun Rocket Launcher > --- INVENTORY -------- Improved Hover Unit Improved Hover Unit Improved Hover Unit Cooling System High-capacity Matter Pod High-capacity Matter Pod Grenade Launcher [Rating: 19] Favorites ----------- Power Light Ion Engine Engine Light Ion Engine Propulsion Improved Hover Unit Wheel Wheel Hover Unit Improved Hover Unit Flight Unit Flight Unit Utility Small Storage Unit Device Thief Drone Bay Storage Small Storage Unit Hackware Hacking Suite Weapon Particle Gun Energy Gun Particle Gun Ballistic Gun Light Assault Rifle Ballistic Cannon Light Cannon Launcher Rocket Launcher Build | -11 -10 -10 -10 -9 ------- Run | Yrd Mat Min Exi Min Slots Evolved . | . . . . . Power . | . . . . . Propulsion . | . . . . . Utility . | . . . . . Weapon . | . . . . . Parts Attached 34 | 8 19 6 . 1 Power 4 | 1 2 1 . . Engine 4 | 1 2 1 . . Core . | . . . . . Reactor . | . . . . . Propulsion 16 | 2 10 3 . 1 Treads . | . . . . . Leg . | . . . . . Wheel 2 | 2 . . . . Hover 6 | . 2 3 . 1 Flight 8 | . 8 . . . Utility 4 | 2 1 1 . . Device 2 | 1 . 1 . . Storage 1 | 1 . . . . Processor . | . . . . . Hackware 1 | . 1 . . . Protection . | . . . . . Artifact . | . . . . . Weapon 10 | 3 6 1 . . Energy Gun 3 | 1 2 . . . Energy Cannon . | . . . . . Ballistic Gun 4 | 2 2 . . . Ballistic Cannon 1 | . 1 . . . Launcher 2 | . 1 1 . . Special Weapon . | . . . . . Impact Weapon . | . . . . . Slashing Weapon . | . . . . . Piercing Weapon . | . . . . . Special Melee Weapon . | . . . . . Unidentified Prototypes 1 | . . 1 . . Parts Lost 3 | . 2 . . 1 Power 1 | . . . . 1 Propulsion . | . . . . . Utility . | . . . . . Weapon 2 | . 2 . . . Highest Loss Streak 1 | . 1 . . 1 To Critical Strikes . | . . . . . Average Slot Usage (%) 85 | . 78 99 85 79 Engine 8 | . 2 14 14 8 Hover 18 | . 4 28 28 28 Flight 9 | . 22 . . . Device 5 | . . 1 14 14 Storage 14 | . 14 14 14 14 Hackware 6 | . 6 12 . . Energy Gun 11 | . 8 14 14 14 Ballistic Gun 6 | . 15 . . . Launcher 4 | . 1 13 . . Naked Turns . | . . . . . Heaviest Build 15 | 13 14 15 15 15 Greatest Support 20 | 20 20 15 15 15 Greatest Overweight (x) 1 | . 1 . . . Average Overweight (x) . | . . . . . Largest Inventory Capacity 8 | 8 8 8 8 8 Average Capacity 7 | 7 8 8 8 8 Most Carried 8 | 5 8 8 8 8 Average Carried 7 | 2 7 7 7 7 Final Capacity 8 | 8 8 8 8 8 Final Carried 8 | 5 8 8 8 7 Class Distribution -------------------- 86% | Mutant 13% | Commander-Mutant Dominant Class ---------------- Mutant | -10/Materials Mutant | -10/Mines Commander-Mutant | -10/Exiles Mutant | -9/Mines Resources | -11 -10 -10 -10 -9 ----------- Run | Yrd Mat Min Exi Min Matter Collected 1279 | 331 749 88 . 111 Remotely . | . . . . . Salvage Created 1570 | 181 1191 183 . 15 Parts 120 | 15 86 15 . 4 Haulers Intercepted 2 | . 2 . . . Recyclers Shooed 2 | . 2 . . . Parts Field Recycled . | . . . . . Retrieved Matter . | . . . . . Parts Self-Destructed . | . . . . . Prevented . | . . . . . Kills | -11 -10 -10 -10 -9 ------- Run | Yrd Mat Min Exi Min Combat Hostiles Destroyed 25 | . 15 10 . . Guns 17 | . 14 3 . . AOE 8 | . 1 7 . . Classes Destroyed 9 | 3 6 . . . Worker 10 | 2 8 . . . Builder 5 | . 4 . . 1 Tunneler 3 | 3 . . . . Hauler 2 | . 2 . . . Recycler 4 | 1 3 . . . Operator 1 | . 1 . . . Watcher 3 | . 3 . . . Swarmer 9 | . 3 6 . . Grunt 16 | . 12 4 . . Best Kill Streak 5 | 3 5 5 . 1 Combat Bots Only 4 | . 4 3 . . Max Kills in Single Turn 2 | 1 2 2 . 1 Gunslinging 1 | . 1 . . . Exploded 2 | . 1 2 . . Melee . | . . . . . Uniques/NPCs Destroyed . | . . . . . Combat | -11 -10 -10 -10 -9 -------- Run | Yrd Mat Min Exi Min Hostile Shots Fired 100 | . 60 26 . 14 Missed 36 | . 28 5 . 3 Damage Taken 893 | . 458 269 . 166 Core 271 | . 176 51 . 44 Absorbed by Shields . | . . . . . Core Remaining (%) 100 | 100 . . . . Volleys Fired 144 | 17 105 15 . 7 Largest 2 | 2 2 2 . 1 Hottest 98 | 60 95 98 . 65 Shots Fired 265 | 34 197 27 . 7 Gun 249 | 34 193 15 . 7 Cannon 2 | . 2 . . . Launcher 14 | . 2 12 . . Special . | . . . . . Kinetic 157 | 17 140 . . . Thermal 28 | . 6 15 . 7 Explosive 14 | . 2 12 . . Electromagnetic 66 | 17 49 . . . Robot Hit Streak 10 | 3 10 3 . 3 Robot Miss Streak 7 | 3 4 6 . 7 Penetration Max . | . . . . . Secondary Targets 5 | . 5 . . . Max Gunslinging Chain 1 | . 1 . . . Shots Hit Robots 159 | 17 130 8 . 4 Core Hits 82 | 6 60 15 . 1 Critical Kills 2 | . 2 . . . Critical Parts Destroyed 1 | . 1 . . . Critical Strikes 3 | . 3 . . . Destroy 3 | . 3 . . . Melee Attacks . | . . . . . Impact . | . . . . . Slashing . | . . . . . Piercing . | . . . . . Sneak Attacks . | . . . . . Combat Hostiles . | . . . . . Follow-up Attacks . | . . . . . Damage Inflicted 2261 | 254 1563 380 . 64 Guns 1574 | 218 1220 72 . 64 Cannons 22 | . 22 . . . Explosions 665 | 36 321 308 . . Melee . | . . . . . Ramming . | . . . . . Kinetic 866 | 89 777 . . . Thermal 433 | 36 261 72 . 64 Explosive 382 | . 74 308 . . Electromagnetic 580 | 129 451 . . . Impact . | . . . . . Slashing . | . . . . . Piercing . | . . . . . Highest Corruption . | . . . . . Average Corruption . | . . . . . Corruption Purged . | . . . . . Corruption Blocked . | . . . . . Overload Shots . | . . . . . Overflow Damage 32 | 8 24 . . . Projectiles . | . . . . . Explosions 32 | 8 24 . . . Melee . | . . . . . Knockbacks . | . . . . . Impact . | . . . . . Kinetic . | . . . . . Secondary . | . . . . . Self-Inflicted Damage 136 | . 64 72 . . Shots 5 | . 2 3 . . Rammed . | . . . . . Targets Rammed . | . . . . . Kicked . | . . . . . Crushed . | . . . . . Highest Temperature 156 | 20 114 128 . 156 Average Temperature 33 | 20 20 50 . 69 Received Heat Transfer 246 | . 204 18 . 24 Siege Activations . | . . . . . Robots Corrupted . | . . . . . Combat Hostiles . | . . . . . Parts Fried . | . . . . . Impact Corruptions . | . . . . . Robots Melted . | . . . . . Combat Hostiles . | . . . . . Parts Melted . | . . . . . Heat Transferred 820 | 50 437 185 . 148 Parts Sabotaged . | . . . . . Parts Stolen . | . . . . . Parts Stripped . | . . . . . Power Chain Reactions 6 | 1 5 . . . Alert | -11 -10 -10 -10 -9 ------- Run | Yrd Mat Min Exi Min Peak Influence 565 | 30 480 565 . 149 Initial 168 | . 19 168 . . Average 254 | 10 260 430 . 44 Maximum Alert Level 2 | . 2 2 . . Low Security (%) 40 | 100 34 . . 100 Level 1 31 | . 37 49 . . Level 2 27 | . 27 49 . . Level 3 . | . . . . . Level 4 . | . . . . . Level 5 . | . . . . . High Security . | . . . . . Max Security . | . . . . . Squads Dispatched 4 | . 3 1 . . Investigation 3 | . 2 1 . . Extermination . | . . . . . Reinforcement 1 | . 1 . . . Assault . | . . . . . Garrison . | . . . . . Intercept . | . . . . . Searches Triggered . | . . . . . Construction Impeded . | . . . . . Haulers Reinforced . | . . . . . Active Scanning Responses . | . . . . . Cargo Convoy Interrupts . | . . . . . Stealth | -11 -10 -10 -10 -9 --------- Run | Yrd Mat Min Exi Min Distress Signals 1 | . 1 . . . Communications Jammed . | . . . . . Distress Signals . | . . . . . Times Spotted 42 | . 19 13 . 10 Peak Tracking Total 5 | . 5 3 . 4 Tactical Retreats 4 | . . 3 . 1 Traps | -11 -10 -10 -10 -9 ------- Run | Yrd Mat Min Exi Min Traps Triggered 1 | . 1 . . . Indirectly . | . . . . . Trap Hack Attempts . | . . . . . Triggered . | . . . . . Disarmed . | . . . . . Reprogrammed . | . . . . . Reused 1 | . . . . 1 Traps Extracted . | . . . . . Installed 3 | . . . . 3 Triggered 1 | . . . . 1 Most Traps Carried 1 | . . . . 1 Machines | -11 -10 -10 -10 -9 ---------- Run | Yrd Mat Min Exi Min Machines Disabled 4 | . 3 . . 1 Max in Single Turn 2 | . 2 . . . Machines Repaired . | . . . . . Machines Dismantled . | . . . . . Machines Sabotaged . | . . . . . Overloaded Fab Kills . | . . . . . Hacking | -11 -10 -10 -10 -9 --------- Run | Yrd Mat Min Exi Min Machines Accessed 12 | . 8 1 3 . Terminals 7 | . 7 . . . Fabricators . | . . . . . Repair Stations . | . . . . . Recycling Units 1 | . 1 . . . Scanalyzers . | . . . . . Garrison Access . | . . . . . Total Hacks 41 | . 22 1 18 . Successful 23 | . 4 1 18 . Failed 17 | . 17 . . . Catastrophic 3 | . 3 . . . Database Lockouts 1 | . 1 . . . Manual 16 | . 15 . 1 . Terminals 19 | . 19 . . . Fabricators . | . . . . . Repair Stations . | . . . . . Recycling Units 3 | . 3 . . . Scanalyzers . | . . . . . Garrison Access . | . . . . . Terminal Hacks 23 | . 4 1 18 . Record 17 | . . . 17 . Robot Analysis 3 | . 3 . . . Open Door 1 | . . 1 . . Branch Access Points 1 | . 1 . . . Derelict Proto ID Bank 1 | . . . 1 . Fabricator Hacks . | . . . . . Repair Station Hacks . | . . . . . Recycling Unit Hacks . | . . . . . Scanalyzer . | . . . . . Garrison Access Hacks . | . . . . . Unauthorized Hacks . | . . . . . Terminals . | . . . . . Fabricators . | . . . . . Repair Stations . | . . . . . Recycling Units . | . . . . . Scanalyzers . | . . . . . Garrison Access . | . . . . . Data Cores Recovered . | . . . . . Used . | . . . . . Hacking Detections 8 | . 8 . . . Full Trace Events . | . . . . . Feedback Events . | . . . . . Feedback Blocked . | . . . . . Robot Schematics Acquired . | . . . . . Robots Built . | . . . . . Authchips . | . . . . . Time . | . . . . . Total Robot Build Rating . | . . . . . Part Schematics Acquired . | . . . . . Parts Built . | . . . . . Authchips . | . . . . . Time . | . . . . . Total Part Build Rating . | . . . . . Parts Repaired . | . . . . . Time . | . . . . . Parts Recycled . | . . . . . Recycled Matter . | . . . . . Retrieved Matter . | . . . . . Retrieved Components . | . . . . . Parts Scanalyzed . | . . . . . Part Schematics Acquired . | . . . . . Parts Damaged . | . . . . . Bothacking | -11 -10 -10 -10 -9 ------------ Run | Yrd Mat Min Exi Min Used RIF Installer . | . . . . . Robots Hacked . | . . . . . Non-combat . | . . . . . Combat . | . . . . . Robot Hacks Applied . | . . . . . Relay Couplers Released . | . . . . . Fabnet Peak Effective % . | . . . . . Robots Rewired 2 | . . . 2 . Allies Hacked . | . . . . . Hacks Repelled . | . . . . . Allies | -11 -10 -10 -10 -9 -------- Run | Yrd Mat Min Exi Min Total Allies 7 | . . 3 2 2 Largest Group 5 | . . 3 5 5 Highest-Rated Group 76 | . . 40 56 76 Highest-Rated Ally 31 | . . 16 16 31 Total Orders . | . . . . . Ally Attacks 16 | . . . . 16 Total Damage 449 | . . . . 449 Kills 6 | . . . . 6 Allies Corrupted . | . . . . . Allies Melted . | . . . . . Intel | -11 -10 -10 -10 -9 ------- Run | Yrd Mat Min Exi Min Robot Analysis Total 3 | . 3 . . . Derelict Logs Recovered 4 | . . 3 . 1 Drone Launches . | . . . . . Drone Recoveries . | . . . . . Exploration | -11 -10 -10 -10 -9 ------------- Run | Yrd Mat Min Exi Min Turns Passed 1812 | 121 702 449 284 256 Spaces Moved 2327 | 68 802 649 413 395 Core 1 | 1 . . . . Treads . | . . . . . Legs . | . . . . . Wheels 117 | 67 50 . . . Hover 1582 | . 125 649 413 395 Flight 627 | . 627 . . . Fastest Speed 37 | 50 37 56 56 56 Average Speed 52 | 79 42 56 56 56 Slowest Speed 120 | 80 120 56 56 56 Overloaded Moves . | . . . . . Propulsion Burnouts . | . . . . . Robots Hopped 5 | . 5 . . . Cave-ins Triggered . | . . . . . Exploration Rate (%) 73 | 4 98 98 89 76 Regions Visited 4 Branch Regions 3 Pre-discovered Areas 2 | . . 1 . 1 Known Exits Taken 1 | . 1 . . . Unknown Exits Taken 3 | 1 . 1 1 . Scrap Searched 3 | . . 2 . 1 Spaces Dug . | . . . . . Terrain Destroyed 134 | . 35 99 . . Melee . | . . . . . Projectile . | . . . . . AOE 134 | . 35 99 . . Terrain Rammed . | . . . . . Walls Destroyed . | . . . . . Machines Disabled . | . . . . . Actions | -11 -10 -10 -10 -9 --------- Run | Yrd Mat Min Exi Min Total 2691 | 96 997 709 466 423 Wait 122 | . 35 30 43 14 Move 2313 | 67 791 648 412 395 Hop 5 | . 5 . . . Pick Up 29 | 4 18 4 2 1 Fast Attach 14 | 7 7 . . . Attach 6 | . 6 . . . Detach 3 | . 2 1 . . Swap 14 | 1 6 6 . 1 Drop 31 | . 22 5 2 2 Fire 144 | 17 105 15 . 7 Melee . | . . . . . Ram . | . . . . . Kick . | . . . . . Crush . | . . . . . Escape Stasis . | . . . . . Rewire 7 | . . . 7 . Trap 3 | . . . . 3 Miscellaneous . | . . . . . Route ------- -11/Scrapyard -10/Materials (discovered 5 exits: [*Mat x3] / *Min x2) -10/Mines (discovered 3 exits: [*Mat x2] / *Exi) -10/Exiles -9/Mines (discovered 2 exits: [*Mat x2]) History --------- Turn | Location | Event 12 | -11/Scrapyard | Discovered new exit (range 16) 122 | -11/Scrapyard | Entered Materials 212 | -10/Materials | Discovered new exit (range 15) 219 | -10/Materials | Identified exit to Mines 316 | -10/Materials | Build established: Mutant 388 | -10/Materials | Discovered new exit (range 11) 459 | -10/Materials | Central database locked down 505 | -10/Materials | Discovered new exit (range 15) 519 | -10/Materials | Core integrity fell below 50% 744 | -10/Materials | Discovered new exit (range 7) 824 | -10/Materials | Entered Mines 864 | -10/Mines | Learned location of 1 exit from Materials 893 | -10/Mines | Discovered new exit (range 5) 928 | -10/Mines | Received a Rocket Launcher from a helpful Derelict 933 | -10/Mines | Met a Derelict shopkeep closing up shop 1011 | -10/Mines | Learned Materials garrison access intel 1065 | -10/Mines | Core integrity fell below 20% 1097 | -10/Mines | Discovered new exit (range 5) 1122 | -10/Mines | Assisted by bots powering up and referring to "LRC-V3" 1196 | -10/Mines | Found the Drone Emporium 1216 | -10/Mines | Deemed a non-threat by the Exiles lab entrance 1217 | -10/Mines | Discovered new exit (range 5) 1238 | -10/Mines | Found Prototype Device 1239 | -10/Mines | Identified Thief Drone Bay 1273 | -10/Mines | Entered Exiles 1273 | -10/Exiles | Found Exiles lab destroyed 1273 | -10/Exiles | Accompanied by 3 allies 1459 | -10/Exiles | Opened EX-Vault 1464 | -10/Exiles | Found Gui. Plasma Cannon 1517 | -10/Exiles | Discovered new exit (range 10) 1557 | -10/Exiles | Entered Mines 1557 | -9/Mines | Accompanied by 3 allies 1558 | -9/Mines | Learned location of Storage (-7) 1594 | -9/Mines | Found a hidden stash of uninstalled traps 1627 | -9/Mines | Discovered new exit (range 10) 1628 | -9/Mines | Discovered new exit (range 14) 1813 | -9/Mines | Destroyed by Proton Bomb Trap Last Messages --------------- 01700_ Lgt. Ion Engine destroyed. 01703_ G-34 Mercenary destroyed. 01714_ R-06 Scavenger collects Aluminum Leg. 01719_ U-05 Engineer destroyed. 01731_ Searching scrap... 01731_ Found Weapon Shielding. 01731_ Found 15 Matter. 01733_ T-07 Excavator is excavating. 01743_ Extracted 10 matter. 01750_ T-07 Excavator is excavating. 01760_ Acquired derelict log, extracted data. Data stored: Recycling entrances (x1). 01765_ S-10 Pest destroyed. 01777_ Mercenary 1c destroyed. 01784_ S-10 Pest destroyed. 01811_ Dropped Proton Bomb Trap. 01812_ Installed Proton Bomb Trap. 01813_ S-10 Pest triggered Proton Bomb Trap. 01813_ A bubble of electromagnetic force engulfs the area. 01813_ S-10 Pest destroyed. Map ----- +----------------------------------------------------+ | #???????## ##?????????????????????? | | ?????????######### #??????????????????????? | | ?????????????????# #??????????????????????? | | ###??????????????# #??????????????????????? | | #"##?????????????# #??????????????????????? | | ##????????????# #??????????????????????? | | "#????????????# #??????????????????????? | | "######???????# ####???????????????????? | | #???????# #??????????????###??? | | %##### #???????####%#?????????????# #??? | | #???# ############!#???????????## #??? | | """#???# !=%|! ## #??????????## #??? | | ####???########### ## #??????????# #???? | | ?????????????????# ## ###???????## #???? | | ?????????????????# *#??????## ##???? | | ?????????????????######=#?????## ##????? | | ??????????????????????#%#?????# ##?????? | | ??????????????????????#t#?????# ## #??????? | | ??????????????????????#[#?????# ## #??????? | | #?????????????????????#%#?????# ## #??????? | | #???????????????????###%###???# ## #??????? | | #???????????????????# ##### ## #??????? | | ##?#####????????????# """ # ?????? | | ## ##???????????# """= # [%= ???? | | #????????#### """%####### #?? | | #?# !%= [@#?????# #?? | | #???????##### #?????# """ #?? | | #????????????## ####?????# """ #?? | | ####?????????????# ?????????# """ #?? | | ##????????????????# ?????????#########?? | | ###?????????????????# ???????#???????????? | | ##?????????????????????????### ???????????? | | #?????????????????????????? ???????????? | | ##????????????????##???????# ???????????? | | ##???????????????# ?#???# ???????????? | | ##??????????????? ??# #??????####?? | | #????????????????"""" ## #?????## ##? | | #?????????????????""" ####### #? | | ##???????????????????????# #? | | ######### ????????????# ###### #?? | | #?????????????# #???## ##?? | | #?????????????## #??## ##??? | | # ###### ##????????????## ##?# ##???? | | ## #?????????????????????# #?# #????? | | ## #?????????????????????# #?## ##????? | | #?????????????????????## ##?###?????? | | ## #??????????????????????## ##????????? | | ?# ##?????????????????????## #????????? | | ## ##?????????????#####?## #????????? | | # #????????????## ### ##????????? | +----------------------------------------------------+ Best States ------------- Heat Dissipation 25 Energy Generation 10 Energy Capacity 125 Matter Stores 300 Matter Capacity 300 Sight Range 16 Terrain Scan Range 16 Terrain Scan Density 10 Evasion (%) 62 Offensive Hacking 10 Item Schematics ----------------- None Robot Schematics ------------------ None Fabricated ------------ Nothing Alien Tech Used ----------------- None Achievements -------------- None Challenges ------------ None Game ------ Seed FlakReactiveDetector Manual? 0 Play Time 00:30:05 Cumulative 131.1 hours Start 2024.03.12 @ 03:14:46 End 2024.03.12 @ 03:45:45 Sessions 1 Manual Loads 0 Difficulty Rogue Special Mode None Game No. 72 Rogue 72 Adventurer 0 Explorer 0 Win Type - Total 0 Types 0/0/0/0/0/0/0/0/0 Lore% 56 Gallery% 59 Achievement% 52 Wizard Run 0 Options --------- Layout 0 ASCII 0 Keyboard 1 Movement Arrows Keybinds 0 Fullscreen 1 Font 12/Smallcaps Map View 83x54 Zoom Use 0% Tactical HUD 1 Map Filters NONE Filters NONE Steam 0 RUN: 9a5fa78a-6bca-4a91-bf38-38bdf0466b7f